[Event "Asian Amateur Rapid 2024"]
[Site "Al Ain"]
[Date "2024.12.15"]
[Round "5.8"]
[White "AbuAzizah, Raji"]
[Black "Shelke Omkar"]
[Result "1-0"]
[ECO "D27"]
[WhiteElo "2161"]
[BlackElo "1764"]
[Annotator "RC"]
[PlyCount "151"]
[EventDate "2024.12.15"]
[EventType "swiss"]
[EventCountry "UAE"]
[SourceTitle "playchess.com"]
[Source "ChessBase"]
[SourceQuality "1"]
[TimeControl "900+10"]

1. d4 {[%emt 0:00:02]} d5 {[%emt 0:00:00]} 2. c4 {[%emt 0:00:01]} dxc4 {[%emt 0:00:02]} 3. e3 {[%emt 0:00:00]} Nf6 {[%emt 0:00:02]} 4. Nc3 {[%emt 0:00:01]} e6 {[%emt 0:00:00]} 5. Bxc4 {[%emt 0:00:01]} c5 {[%emt 0:00:03]} 6. Nf3 {[%emt 0:00:07]} a6 {[%emt 0:00:02]} 7. a4 {[%emt 0:00:09]} Nc6 {[%emt 0:00:02]} 8. O-O {[%emt 0:00:07]} Be7 {[%emt 0:00:01]} 9. dxc5 {[%emt 0:00:01]} Bxc5 {[%emt 0:00:05]} 10. Qe2 {[%emt 0:00:08]} O-O {[%emt 0:00:12]} 11. Rd1 {[%emt 0:00:04]} Qe7 {[%emt 0:00:29]} 12. e4 {[%emt 0:00:59]} Nb4 {[%emt 0:02:08]} 13. Bg5 {[%emt 0:00:13]} e5 {[%emt 0:00:30]} 14. Nd5 {[%emt 0:01:01]} Nbxd5 {[%emt 0:00:07]} 15. Bxd5 {[%emt 0:00:28]} Bg4 {[%emt 0:00:35]} 16. h3 {[%emt 0:00:22]} Bh5 {[%emt 0:00:41]} 17. g4 {[%emt 0:00:41]} Bg6 {[%emt 0:00:15]} 18. a5 {[%emt 0:01:26]} h5 {[%emt 0:00:52]} 19. Nh4 {[%emt 0:00:13]} Kh7 {[%emt 0:00:40]} 20. Nf5 {[%emt 0:00:10]} Bxf5 {[%emt 0:00:10]} 21. gxf5 {[%emt 0:00:01]} g6 {[%emt 0:00:12]} 22. Rac1 {[%emt 0:02:57]} Bd4 {[%emt 0:00:13]} 23. Rxd4 {[%emt 0:00:38]} exd4 {[%emt 0:00:07]} 24. e5 {[%emt 0:00:01]} Qd7 {[%emt 0:00:19]} 25. Bxf7 {[%emt 0:01:28]} Qxf5 {[%emt 0:01:04]} 26. Bxf6 {[%emt 0:01:19]} Rxf7 {[%emt 0:00:07]} 27. Kg2 {[%emt 0:00:31]} Re8 {[%emt 0:00:23]} 28. Qd2 {[%emt 0:00:14]} Qe4+ {[%emt 0:00:41]} 29. f3 {[%emt 0:00:37]} Qe3 {[%emt 0:01:17]} 30. Qxe3 {[%emt 0:00:36]} dxe3 {[%emt 0:00:02]} 31. f4 {[%emt 0:00:04]} e2 {[%emt 0:00:39]} 32. Kf2 {[%emt 0:00:20]} Kg8 {[%emt 0:00:29]} 33. Re1 {[%emt 0:00:19]} g5 {[%emt 0:01:33]} 34. Kf3 {[%emt 0:00:42]} gxf4 {[%emt 0:00:31]} 35. Kxf4 {[%emt 0:00:21]} Kf8 {[%emt 0:00:27]} 36. Kf5 {[%emt 0:00:22]} Rd7 {[%emt 0:00:37]} 37. Rxe2 {[%emt 0:00:16]} Rd3 {[%emt 0:00:22]} 38. h4 {[%emt 0:00:03]} Rf3+ {[%emt 0:00:28]} 39. Kg6 {[%emt 0:00:21]} Re6 {[%emt 0:01:12]} 40. Rd2 {[%emt 0:00:21]} Re8 {[%emt 0:00:07]} 41. Kxh5 {[%emt 0:00:19]} Kf7 {[%emt 0:00:30]} 42. Rd7+ {[%emt 0:00:01]} Ke6 {[%emt 0:00:16]} 43. Rxb7 {[%emt 0:00:01]} Kf5 {[%emt 0:00:01]} 44. Rb6 {[%emt 0:00:11]} Ra8 {[%emt 0:00:18]} 45. Bg7 {[%emt 0:01:14]} Rg3 {[%emt 0:01:34]} 46. Rf6+ {[%emt 0:00:14]} Ke4 {[%emt 0:00:01]} 47. Rg6 {[%emt 0:00:11]} Rf3 {[%emt 0:01:13]} 48. e6 {[%emt 0:00:53]} Re8 {[%emt 0:00:07]} 49. Bc3 {[%emt 0:01:40]} Rf5+ {[%emt 0:00:26]} 50. Kh6 {[%emt 0:00:01]} Kd5 {[%emt 0:00:40]} 51. e7 {[%emt 0:00:05]} Rxe7 {[%emt 0:00:04]} 52. Rxa6 {[%emt 0:00:11]} Re4 {[%emt 0:00:12]} 53. Bf6 {[%emt 0:00:57]} Re6 {[%emt 0:00:35]} 54. Rxe6 {[%emt 0:00:04]} Kxe6 {[%emt 0:00:01]} 55. Bc3 {[%emt 0:00:01]} Kf7 {[%emt 0:00:04]} 56. a6 {[%emt 0:00:04]} Rd5 {[%emt 0:00:19]} 57. a7 {[%emt 0:00:06]} Rd6+ {[%emt 0:00:01]} 58. Kg5 {[%emt 0:00:02]} Ra6 {[%emt 0:00:09]} 59. Bd4 {[%emt 0:00:09]} Ra5+ {[%emt 0:00:02]} 60. Kf4 {[%emt 0:00:07]} Ke7 {[%emt 0:00:05]} 61. b4 {[%emt 0:00:03]} Ra4 {[%emt 0:00:00]} 62. Bc5+ {[%emt 0:00:01]} Kd7 {[%emt 0:00:01]} 63. Kg5 {[%emt 0:00:03]} Kc7 {[%emt 0:00:00]} 64. h5 {[%emt 0:00:02]} Kb7 {[%emt 0:00:01]} 65. h6 {[%emt 0:00:01]} Ra1 {[%emt 0:00:01]} 66. h7 {[%emt 0:00:32]} Rh1 {[%emt 0:00:02]} 67. Kg6 {[%emt 0:00:05]} Rh2 {[%emt 0:00:19]} 68. Bf8 {[%emt 0:00:16]} Rg2+ {[%emt 0:00:05]} 69. Kf7 {[%emt 0:00:13]} Rh2 {[%emt 0:00:15]} 70. Kg8 {[%emt 0:00:02]} Rg2+ {[%emt 0:00:27]} 71. Bg7 {[%emt 0:00:01]} Rh2 {[%emt 0:00:01]} 72. h8=Q {[%emt 0:01:35]} Rxh8+ {[%emt 0:00:01]} 73. Bxh8 {[%emt 0:00:00]} Kxa7 {[%emt 0:00:01]} 74. Bd4+ {[%emt 0:00:00]} Ka6 {[%emt 0:00:00]} 75. Bc5 {[%emt 0:00:00]} Kb5 {[%emt 0:00:01]} 76. Kf7 {[%emt 0:00:00]} 1-0

[Event "Asian Amateur Rapid 2024"]
[Site "Al Ain"]
[Date "2024.12.15"]
[Round "5.9"]
[White "Yahya Shuaib Al Kaff"]
[Black "Sharma Pankaj"]
[Result "0-1"]
[ECO "D19"]
[WhiteElo "1879"]
[BlackElo "1861"]
[Annotator "NA COMBH"]
[PlyCount "54"]
[EventDate "2024.12.15"]
[EventType "swiss"]
[EventCountry "UAE"]
[SourceTitle "playchess.com"]
[Source "ChessBase"]
[SourceQuality "1"]
[TimeControl "900+10"]

1. d4 {[%emt 0:00:02]} d5 {[%emt 0:00:01]} 2. c4 {[%emt 0:00:02]} c6 {[%emt 0:00:02]} 3. Nc3 {[%emt 0:00:03]} Nf6 {[%emt 0:00:01]} 4. Nf3 {[%emt 0:00:02]} dxc4 {[%emt 0:00:02]} 5. a4 {[%emt 0:00:03]} Bf5 {[%emt 0:00:02]} 6. e3 {[%emt 0:00:07]} e6 {[%emt 0:00:02]} 7. Bxc4 {[%emt 0:00:10]} Bb4 {[%emt 0:00:02]} 8. O-O {[%emt 0:00:47]} O-O {[%emt 0:00:02]} 9. Qe2 {[%emt 0:01:12]} Bg6 {[%emt 0:00:13]} 10. Rd1 {[%emt 0:00:27]} Nbd7 {[%emt 0:00:23]} 11. Ne1 {[%emt 0:01:30]} Qe7 {[%emt 0:01:28]} 12. Nd3 {[%emt 0:02:27]} a5 {[%emt 0:00:53]} 13. f3 {[%emt 0:01:28]} Bxd3 {[%emt 0:00:35]} 14. Bxd3 {[%emt 0:00:38]} e5 {[%emt 0:00:04]} 15. dxe5 {[%emt 0:02:31]} Nxe5 {[%emt 0:00:02]} 16. Bc2 {[%emt 0:01:33]} Rad8 {[%emt 0:00:39]} 17. e4 {[%emt 0:01:13]} Rxd1+ {[%emt 0:00:08]} 18. Nxd1 {[%emt 0:01:06]} Rd8 {[%emt 0:00:14]} 19. Bg5 {[%emt 0:00:48]} h6 {[%emt 0:00:04]} 20. Bh4 {[%emt 0:00:14]} Rd2 {[%emt 0:00:09]} 21. Qf1 {[%emt 0:01:17]} Rxc2 {[%emt 0:00:07]} 22. Ne3 {[%emt 0:00:01]} Bc5 {[%emt 0:00:08]} 23. Bf2 {[%emt 0:00:12]} Rxb2 {[%emt 0:01:16]} 24. Rc1 {[%emt 0:00:54]} b6 {[%emt 0:02:11]} 25. Kh1 {[%emt 0:00:20]} g6 {[%emt 0:01:18]} 26. h3 {[%emt 0:00:10]} Nh5 {[%emt 0:00:07]} 27. Qe1 {[%emt 0:00:08] Check Result:-25.62} Nd3 {[%emt 0:00:15]} 0-1

[Event "Asian Amateur Rapid 2024"]
[Site "Al Ain"]
[Date "2024.12.15"]
[Round "5.10"]
[White "Atharv Bansal"]
[Black "Saqar Essa Khamis"]
[Result "0-1"]
[ECO "B22"]
[WhiteElo "1896"]
[BlackElo "1684"]
[Annotator "NA COMBH"]
[PlyCount "136"]
[EventDate "2024.12.15"]
[EventType "swiss"]
[EventCountry "UAE"]
[SourceTitle "playchess.com"]
[Source "ChessBase"]
[SourceQuality "1"]
[TimeControl "900+10"]

1. e4 {[%emt 0:00:01]} c5 {[%emt 0:00:01]} 2. c3 {[%emt 0:00:02]} d5 {[%emt 0:00:01]} 3. exd5 {[%emt 0:00:01]} Qxd5 {[%emt 0:00:01]} 4. d4 {[%emt 0:00:01]} Nc6 {[%emt 0:00:10]} 5. Nf3 {[%emt 0:00:02]} Nf6 {[%emt 0:00:06]} 6. Be2 {[%emt 0:00:03]} e6 {[%emt 0:00:04]} 7. O-O {[%emt 0:00:03]} Be7 {[%emt 0:00:04]} 8. Na3 {[%emt 0:00:21]} O-O {[%emt 0:00:38]} 9. Nc2 {[%emt 0:01:48]} Rd8 {[%emt 0:01:06]} 10. Be3 {[%emt 0:00:04]} b6 {[%emt 0:01:09]} 11. Nd2 {[%emt 0:01:16]} Bb7 {[%emt 0:00:49]} 12. Bf3 {[%emt 0:00:42]} Qd7 {[%emt 0:00:13]} 13. Nc4 {[%emt 0:00:05]} Nd5 {[%emt 0:00:47]} 14. dxc5 {[%emt 0:00:54]} bxc5 {[%emt 0:00:12]} 15. Qe2 {[%emt 0:00:14]} Ba6 {[%emt 0:00:15]} 16. Rfd1 {[%emt 0:00:48]} Rab8 {[%emt 0:00:31]} 17. N2a3 {[%emt 0:00:20]} Na5 {[%emt 0:00:57]} 18. Be4 {[%emt 0:01:01]} Nxc4 {[%emt 0:00:22]} 19. Nxc4 {[%emt 0:00:01]} Qa4 {[%emt 0:01:13]} 20. Bd3 {[%emt 0:03:56]} Nxe3 {[%emt 0:01:27]} 21. fxe3 {[%emt 0:00:54]} Rxd3 {[%emt 0:00:33]} 22. Qxd3 {[%emt 0:00:01]} Bxc4 {[%emt 0:00:22]} 23. Qe4 {[%emt 0:00:23]} Qa6 {[%emt 0:00:28]} 24. b3 {[%emt 0:00:02]} Be2 {[%emt 0:00:14]} 25. Rd2 {[%emt 0:01:27]} Bf6 {[%emt 0:01:41]} 26. Rc1 {[%emt 0:00:44]} Bb5 {[%emt 0:01:04]} 27. Rcd1 {[%emt 0:00:27]} Bc6 {[%emt 0:00:03]} 28. Qf4 {[%emt 0:00:06]} Qb7 {[%emt 0:00:14]} 29. c4 {[%emt 0:01:04]} h6 {[%emt 0:00:46]} 30. Qd6 {[%emt 0:00:15]} Be7 {[%emt 0:00:37]} 31. Qe5 {[%emt 0:00:03]} Rc8 {[%emt 0:00:40]} 32. Rf1 {[%emt 0:00:19]} Rd8 {[%emt 0:01:07]} 33. Rdf2 {[%emt 0:00:04]} Bf6 {[%emt 0:00:25]} 34. Qxc5 {[%emt 0:00:16]} Be4 {[%emt 0:00:11]} 35. h3 {[%emt 0:00:27]} Rd3 {[%emt 0:00:24]} 36. Re2 {[%emt 0:00:59]} Bg5 {[%emt 0:00:19]} 37. Rfe1 {[%emt 0:01:00]} Qb8 {[%emt 0:00:43]} 38. Qb5 {[%emt 0:01:00]} Qg3 {[%emt 0:00:16]} 39. Qe8+ {[%emt 0:00:01]} Kh7 {[%emt 0:00:02]} 40. Qxf7 {[%emt 0:00:01]} Bxg2 {[%emt 0:00:43]} 41. Qf2 {[%emt 0:00:14]} Qxf2+ {[%emt 0:00:22]} 42. Kxf2 {[%emt 0:00:40]} Bxh3 {[%emt 0:00:02]} 43. Rh1 {[%emt 0:00:00]} Bg4 {[%emt 0:00:03]} 44. Ree1 {[%emt 0:00:00]} Rd2+ {[%emt 0:00:02]} 45. Kg3 {[%emt 0:00:00]} Bf5 {[%emt 0:00:23]} 46. Rh2 {[%emt 0:00:11]} Rd3 {[%emt 0:00:07]} 47. Kf3 {[%emt 0:00:06]} e5 {[%emt 0:00:06]} 48. Rc2 {[%emt 0:00:27]} Bh4 {[%emt 0:00:37]} 49. Rh1 {[%emt 0:00:09]} Bg5 {[%emt 0:00:01]} 50. c5 {[%emt 0:00:01]} Rxe3+ {[%emt 0:00:03]} 51. Kf2 {[%emt 0:00:02]} Bxc2 {[%emt 0:00:02]} 52. Rg1 {[%emt 0:00:07]} Rc3 {[%emt 0:00:03]} 53. Ke2 {[%emt 0:00:02]} Bd3+ {[%emt 0:00:02]} 54. Kf3 {[%emt 0:00:02]} e4+ {[%emt 0:00:04]} 55. Kg4 {[%emt 0:00:01]} Be2+ {[%emt 0:00:04]} 56. Kf5 {[%emt 0:00:01]} Rxc5+ {[%emt 0:00:02]} 57. Kxe4 {[%emt 0:00:01]} Bh5 {[%emt 0:00:13]} 58. b4 {[%emt 0:00:02]} Rc4+ {[%emt 0:00:03]} 59. Kd5 {[%emt 0:00:01]} Rxb4 {[%emt 0:00:02]} 60. Rg3 {[%emt 0:00:04]} Bf7+ {[%emt 0:00:01]} 61. Kc5 {[%emt 0:00:01]} Be7+ {[%emt 0:00:08]} 62. Kc6 {[%emt 0:00:02]} Rb6+ {[%emt 0:00:10]} 63. Kd7 {[%emt 0:00:03]} Bf6 {[%emt 0:00:13]} 64. a3 {[%emt 0:00:02]} Be6+ {[%emt 0:00:04]} 65. Kc7 {[%emt 0:00:15]} Be5+ {[%emt 0:00:01]} 66. Kd8 {[%emt 0:00:01]} Bxg3 {[%emt 0:00:03]} 67. a4 {[%emt 0:00:01]} Bd6 {[%emt 0:00:04]} 68. a5 {[%emt 0:00:02] Check Result:?ev?} Rb8# {[%emt 0:00:03]} 0-1

[Event "Asian Amateur Rapid 2024"]
[Site "Al Ain"]
[Date "2024.12.15"]
[Round "5.11"]
[White "Rashid Husain Alhammadi"]
[Black "Soud, Jaber"]
[Result "0-1"]
[ECO "C67"]
[WhiteElo "1914"]
[BlackElo "1956"]
[Annotator "NA COMBH"]
[PlyCount "65"]
[EventDate "2024.12.15"]
[EventType "swiss"]
[EventCountry "UAE"]
[SourceTitle "playchess.com"]
[Source "ChessBase"]
[SourceQuality "1"]
[TimeControl "900+10"]

1. e4 {[%emt 0:00:01]} e5 {[%emt 0:00:01]} 2. Nf3 {[%emt 0:00:01]} Nc6 {[%emt 0:00:01]} 3. Bb5 {[%emt 0:00:01]} Nf6 {[%emt 0:00:01]} 4. O-O {[%emt 0:00:02]} Nxe4 {[%emt 0:00:02]} 5. Re1 {[%emt 0:00:24]} Nd6 {[%emt 0:00:01]} 6. Nxe5 {[%emt 0:00:01]} Be7 {[%emt 0:00:01]} 7. Bf1 {[%emt 0:00:08]} Nxe5 {[%emt 0:00:07]} 8. Rxe5 {[%emt 0:00:02]} O-O {[%emt 0:00:02]} 9. d4 {[%emt 0:00:01]} Bf6 {[%emt 0:00:01]} 10. Bd3 {[%emt 0:00:11]} Bxe5 {[%emt 0:00:31]} 11. dxe5 {[%emt 0:00:02]} Ne8 {[%emt 0:00:01]} 12. Qh5 {[%emt 0:00:32]} g6 {[%emt 0:00:01]} 13. Qh6 {[%emt 0:00:33]} Qe7 {[%emt 0:00:33]} 14. Nc3 {[%emt 0:00:48]} Qxe5 {[%emt 0:00:46]} 15. Bg5 {[%emt 0:00:30]} d5 {[%emt 0:00:30]} 16. Kf1 {[%emt 0:02:29]} Bf5 {[%emt 0:00:58]} 17. Bxf5 {[%emt 0:02:21]} Qxf5 {[%emt 0:01:11]} 18. Be7 {[%emt 0:01:56]} Nf6 {[%emt 0:00:12]} 19. Bxf8 {[%emt 0:01:36]} Rxf8 {[%emt 0:00:01]} 20. Qd2 {[%emt 0:00:03]} Re8 {[%emt 0:00:13]} 21. Qd4 {[%emt 0:01:06]} b6 {[%emt 0:01:17]} 22. Rd1 {[%emt 0:02:27]} c5 {[%emt 0:00:45]} 23. Qa4 {[%emt 0:01:01]} Re7 {[%emt 0:00:07]} 24. f3 {[%emt 0:02:18]} d4 {[%emt 0:01:05]} 25. Ne2 {[%emt 0:00:10]} Qe5 {[%emt 0:00:46]} 26. Ng3 {[%emt 0:00:24]} Nd5 {[%emt 0:00:03]} 27. Kg1 {[%emt 0:00:20]} Qe3+ {[%emt 0:00:17]} 28. Kf1 {[%emt 0:00:01]} h5 {[%emt 0:00:02]} 29. Qc6 {[%emt 0:00:12]} Nf4 {[%emt 0:00:11]} 30. h4 {[%emt 0:00:16]} Re6 {[%emt 0:01:00]} 31. Qc8+ {[%emt 0:00:11]} Kg7 {[%emt 0:00:03]} 32. Qd8 {[%emt 0:00:07]} Nh3 {[%emt 0:00:43] Check Result:-#7} 33. gxh3 {[%emt 0:00:25]} 0-1

[Event "Asian Amateur Rapid 2024"]
[Site "Al Ain"]
[Date "2024.12.15"]
[Round "5.12"]
[White "Raj Aryan"]
[Black "Muhammad Shayan Noushad Ibrahi"]
[Result "1-0"]
[ECO "D03"]
[WhiteElo "1609"]
[BlackElo "1716"]
[Annotator "NA COMBH"]
[PlyCount "83"]
[EventDate "2024.12.15"]
[EventType "swiss"]
[EventCountry "UAE"]
[SourceTitle "playchess.com"]
[Source "ChessBase"]
[SourceQuality "1"]
[TimeControl "900+10"]

1. d4 {[%emt 0:00:01]} d5 {[%emt 0:00:01]} 2. Nf3 {[%emt 0:00:02]} Nf6 {[%emt 0:00:03]} 3. Bg5 {[%emt 0:00:01]} c6 {[%emt 0:00:01]} 4. e3 {[%emt 0:00:01]} Bf5 {[%emt 0:00:08]} 5. c4 {[%emt 0:00:01]} e6 {[%emt 0:00:02]} 6. Qb3 {[%emt 0:00:01]} Qc8 {[%emt 0:00:57]} 7. Nc3 {[%emt 0:00:03]} Nbd7 {[%emt 0:00:10]} 8. cxd5 {[%emt 0:00:02]} exd5 {[%emt 0:00:03]} 9. Rc1 {[%emt 0:00:06]} Be7 {[%emt 0:01:10]} 10. Ne5 {[%emt 0:00:13]} O-O {[%emt 0:00:41]} 11. Be2 {[%emt 0:00:19]} Qc7 {[%emt 0:00:27]} 12. f4 {[%emt 0:00:11]} Qb6 {[%emt 0:00:48]} 13. g4 {[%emt 0:01:15]} Be4 {[%emt 0:02:30]} 14. Nxe4 {[%emt 0:00:08]} dxe4 {[%emt 0:00:07]} 15. Nxd7 {[%emt 0:00:10]} Bb4+ {[%emt 0:00:11]} 16. Kf2 {[%emt 0:02:21]} Nxd7 {[%emt 0:00:03]} 17. Qc2 {[%emt 0:02:29]} Rae8 {[%emt 0:00:18]} 18. Bc4 {[%emt 0:00:20]} Bd6 {[%emt 0:00:20]} 19. b4 {[%emt 0:03:22]} Kh8 {[%emt 0:00:24]} 20. Bh4 {[%emt 0:00:58]} Qc7 {[%emt 0:01:25]} 21. Bg3 {[%emt 0:00:04]} Bxb4 {[%emt 0:00:28]} 22. Qb3 {[%emt 0:00:01]} Bd6 {[%emt 0:00:08]} 23. f5 {[%emt 0:01:07]} Nb6 {[%emt 0:03:00]} 24. Kg2 {[%emt 0:02:10]} Nxc4 {[%emt 0:00:43]} 25. Qxc4 {[%emt 0:00:02]} Rd8 {[%emt 0:00:14]} 26. a4 {[%emt 0:01:15]} Qe7 {[%emt 0:00:51]} 27. Bxd6 {[%emt 0:01:49]} Qxd6 {[%emt 0:00:03]} 28. a5 {[%emt 0:00:05]} Qh6 {[%emt 0:01:31]} 29. Rhe1 {[%emt 0:00:24]} Qg5 {[%emt 0:00:10]} 30. Kg3 {[%emt 0:00:17]} Rd5 {[%emt 0:00:11]} 31. h4 {[%emt 0:00:29]} Qe7 {[%emt 0:00:09]} 32. a6 {[%emt 0:00:09]} Rc8 {[%emt 0:00:46]} 33. Qxd5 {[%emt 0:00:25]} Re8 {[%emt 0:01:36]} 34. Qe5 {[%emt 0:00:13]} Qd8 {[%emt 0:00:20]} 35. Qf4 {[%emt 0:00:05]} bxa6 {[%emt 0:01:01]} 36. Rc3 {[%emt 0:00:31]} c5 37. Rxc5 {[%emt 0:00:00]} Qa5 {[%emt 0:00:00]} 38. Rc6 {[%emt 0:00:00]} h6 {[%emt 0:00:00]} 39. Rec1 {[%emt 0:00:01]} g5 {[%emt 0:00:09]} 40. f6 {[%emt 0:00:06]} Rg8 41. hxg5 {[%emt 0:00:16]} Qc5 {Check Result:#5} 42. R6xc5 {[%emt 0:00:05]} 1-0

[Event "Asian Amateur Rapid 2024"]
[Site "Al Ain"]
[Date "2024.12.15"]
[Round "5.13"]
[White "Umarov, Mukhammadrizo"]
[Black "Manuwaruna, Sethun Neththaru"]
[Result "1-0"]
[ECO "A96"]
[WhiteElo "1902"]
[BlackElo "1933"]
[Annotator "NA COMBH"]
[PlyCount "59"]
[EventDate "2024.12.15"]
[EventType "swiss"]
[EventCountry "UAE"]
[SourceTitle "playchess.com"]
[Source "ChessBase"]
[SourceQuality "1"]
[TimeControl "900+10"]

1. c4 {[%emt 0:00:06]} f5 {[%emt 0:00:01]} 2. Nf3 {[%emt 0:00:09]} Nf6 {[%emt 0:00:01]} 3. Nc3 {[%emt 0:00:02]} d6 {[%emt 0:00:02]} 4. d4 {[%emt 0:00:19]} e6 {[%emt 0:00:02]} 5. g3 {[%emt 0:00:06]} Be7 {[%emt 0:00:01]} 6. Bg2 {[%emt 0:00:01]} O-O {[%emt 0:00:02]} 7. O-O {[%emt 0:00:02]} Ne4 {[%emt 0:00:02]} 8. Qc2 {[%emt 0:00:08]} Nxc3 {[%emt 0:00:03]} 9. Qxc3 {[%emt 0:00:05]} Bf6 {[%emt 0:00:01]} 10. b3 {[%emt 0:00:12]} c5 {[%emt 0:01:13]} 11. e3 {[%emt 0:00:02]} Nc6 {[%emt 0:00:06]} 12. Bb2 {[%emt 0:00:08]} e5 {[%emt 0:00:14]} 13. dxe5 {[%emt 0:00:58]} dxe5 {[%emt 0:00:11]} 14. Rad1 {[%emt 0:02:10]} Qe7 {[%emt 0:00:27]} 15. Qc2 {[%emt 0:02:52]} g5 {[%emt 0:02:54]} 16. Nd2 {[%emt 0:01:07]} Nb4 {[%emt 0:02:53]} 17. Qb1 {[%emt 0:00:08]} Rd8 {[%emt 0:01:07]} 18. a3 {[%emt 0:00:04]} Nd3 {[%emt 0:00:25]} 19. Bd5+ {[%emt 0:00:08]} Rxd5 {[%emt 0:00:39]} 20. cxd5 {[%emt 0:00:01]} e4 {[%emt 0:01:09]} 21. Bxf6 {[%emt 0:03:20]} Qxf6 {[%emt 0:00:02]} 22. f4 {[%emt 0:00:18]} gxf4 {[%emt 0:01:03]} 23. gxf4 {[%emt 0:01:22]} b5 {[%emt 0:01:19]} 24. Kh1 {[%emt 0:01:32]} Kf7 {[%emt 0:02:50]} 25. Nf3 {[%emt 0:01:17]} Bd7 {[%emt 0:00:46]} 26. Rxd3 {[%emt 0:01:23]} exd3 {[%emt 0:00:13]} 27. Ne5+ {[%emt 0:00:01]} Ke7 {[%emt 0:00:10]} 28. Qxd3 {[%emt 0:00:01]} a6 {[%emt 0:00:55]} 29. d6+ {[%emt 0:00:11]} Ke6 {[%emt 0:00:20] Check Result:15.70} 30. Rd1 {[%emt 0:00:00]} 1-0

[Event "Asian Amateur Rapid 2024"]
[Site "Al Ain"]
[Date "2024.12.15"]
[Round "5.14"]
[White "Fedorov, Grigory"]
[Black "Alviz, Joshua Ezekiel"]
[Result "1-0"]
[ECO "C02"]
[WhiteElo "1916"]
[BlackElo "1766"]
[Annotator "NA COMBH"]
[PlyCount "85"]
[EventDate "2024.12.15"]
[EventType "swiss"]
[EventCountry "UAE"]
[SourceTitle "playchess.com"]
[Source "ChessBase"]
[SourceQuality "1"]
[TimeControl "900+10"]

1. e4 {[%emt 0:00:02]} e6 {[%emt 0:00:01]} 2. d4 {[%emt 0:00:03]} d5 {[%emt 0:00:01]} 3. e5 {[%emt 0:00:03]} c5 {[%emt 0:00:01]} 4. c3 {[%emt 0:00:01]} Nc6 {[%emt 0:00:01]} 5. Nf3 {[%emt 0:00:01]} Bd7 {[%emt 0:00:01]} 6. Bd3 {[%emt 0:00:02]} cxd4 {[%emt 0:00:02]} 7. O-O {[%emt 0:00:05]} dxc3 {[%emt 0:00:12]} 8. Nxc3 {[%emt 0:00:02]} Nge7 {[%emt 0:00:03]} 9. Re1 {[%emt 0:00:10]} Ng6 {[%emt 0:00:01]} 10. g3 {[%emt 0:00:34]} Bb4 {[%emt 0:00:54]} 11. a3 {[%emt 0:00:13]} Bxc3 {[%emt 0:00:20]} 12. bxc3 {[%emt 0:00:01]} Qc7 {[%emt 0:00:10]} 13. Qe2 {[%emt 0:00:09]} Na5 {[%emt 0:00:19]} 14. h4 {[%emt 0:00:28]} Rc8 {[%emt 0:00:18]} 15. h5 {[%emt 0:00:38]} Ne7 {[%emt 0:00:03]} 16. h6 {[%emt 0:00:22]} g6 {[%emt 0:01:21]} 17. Bg5 {[%emt 0:00:20]} Ng8 {[%emt 0:03:49]} 18. Nd4 {[%emt 0:02:19]} a6 {[%emt 0:00:14]} 19. Rab1 {[%emt 0:12:47]} Qc5 {[%emt 0:01:59]} 20. Rb4 {[%emt 0:00:00]} Qf8 {[%emt 0:01:07]} 21. Reb1 {[%emt 0:00:00]} Nxh6 {[%emt 0:04:21]} 22. Rxb7 {[%emt 0:00:00]} Nc4 {[%emt 0:01:01]} 23. Bxc4 {[%emt 0:00:00]} dxc4 {[%emt 0:00:21]} 24. Rb8 {[%emt 0:00:00]} f6 {[%emt 0:00:24]} 25. Qxc4 {[%emt 0:00:00]} Kf7 {[%emt 0:01:43]} 26. Rxc8 {[%emt 0:00:01]} Qxc8 {[%emt 0:00:01]} 27. Qxc8 {[%emt 0:00:06]} Rxc8 {[%emt 0:00:01]} 28. Bxh6 {[%emt 0:00:05]} Rxc3 {[%emt 0:00:03]} 29. Rb7 {[%emt 0:00:45]} fxe5 {[%emt 0:00:02]} 30. Rxd7+ {[%emt 0:00:06]} Ke8 {[%emt 0:00:03]} 31. Ne2 {[%emt 0:00:16]} Rc2 {[%emt 0:00:12]} 32. Rd2 {[%emt 0:00:05]} Rc4 {[%emt 0:00:28]} 33. Rd6 {[%emt 0:00:28]} Ra4 {[%emt 0:00:42]} 34. Bc1 {[%emt 0:00:05]} Ke7 {[%emt 0:00:08]} 35. Rb6 {[%emt 0:00:03]} Kd7 {[%emt 0:00:12]} 36. Rb7+ {[%emt 0:00:08]} Kc6 {[%emt 0:00:04]} 37. Rxh7 {[%emt 0:00:04]} Re4 {[%emt 0:00:08]} 38. Kf1 {[%emt 0:00:07]} Rc4 {[%emt 0:00:25]} 39. Rg7 {[%emt 0:00:11]} Kd5 {[%emt 0:00:02]} 40. Rxg6 {[%emt 0:00:20]} Rc2 {[%emt 0:00:01]} 41. Rg4 {[%emt 0:00:10]} e4 {[%emt 0:00:09]} 42. Ke1 {[%emt 0:00:05]} Ra2 {[%emt 0:00:06] Check Result:#15} 43. Nc3+ {[%emt 0:00:02]} 1-0

[Event "Asian Amateur Rapid 2024"]
[Site "Al Ain"]
[Date "2024.12.15"]
[Round "5.15"]
[White "Al Hinai, Qusay"]
[Black "Sendi, David V"]
[Result "1-0"]
[ECO "B82"]
[WhiteElo "1862"]
[BlackElo "1747"]
[Annotator "NA COMBH"]
[PlyCount "59"]
[EventDate "2024.12.15"]
[EventType "swiss"]
[EventCountry "UAE"]
[SourceTitle "playchess.com"]
[Source "ChessBase"]
[SourceQuality "1"]
[TimeControl "900+10"]

1. e4 {[%emt 0:00:01]} c5 {[%emt 0:00:01]} 2. Nf3 {[%emt 0:00:02]} e6 {[%emt 0:00:01]} 3. d4 {[%emt 0:00:01]} cxd4 {[%emt 0:00:01]} 4. Nxd4 {[%emt 0:00:01]} a6 {[%emt 0:00:01]} 5. Nc3 {[%emt 0:00:09]} Qc7 {[%emt 0:00:02]} 6. Bd3 {[%emt 0:00:07]} Nf6 {[%emt 0:00:10]} 7. a4 {[%emt 0:00:24]} Be7 {[%emt 0:00:23]} 8. O-O {[%emt 0:00:04]} d6 {[%emt 0:00:30]} 9. Kh1 {[%emt 0:00:19]} O-O {[%emt 0:00:03]} 10. f4 {[%emt 0:00:04]} Nbd7 {[%emt 0:00:07]} 11. f5 {[%emt 0:00:45]} Ne5 {[%emt 0:01:40]} 12. Bg5 {[%emt 0:00:44]} Bd7 {[%emt 0:00:31]} 13. Qe1 {[%emt 0:00:18]} h6 {[%emt 0:02:02]} 14. Bd2 {[%emt 0:00:45]} Qb6 {[%emt 0:00:34]} 15. Nf3 {[%emt 0:01:17]} Nxd3 {[%emt 0:00:57]} 16. cxd3 {[%emt 0:00:02]} exf5 {[%emt 0:00:02]} 17. exf5 {[%emt 0:00:01]} Rfe8 {[%emt 0:03:02]} 18. Qg3 {[%emt 0:01:03]} Bxf5 {[%emt 0:01:31]} 19. Nh4 {[%emt 0:00:01]} Nh5 {[%emt 0:04:22]} 20. Qf3 {[%emt 0:00:02]} Bg6 {[%emt 0:00:01]} 21. Nd5 {[%emt 0:00:41]} Qd8 {[%emt 0:00:51]} 22. Nxg6 {[%emt 0:00:02]} fxg6 {[%emt 0:00:01]} 23. Qf7+ {[%emt 0:00:01]} Kh7 {[%emt 0:00:01]} 24. Bc3 {[%emt 0:00:24]} Rc8 {[%emt 0:01:57]} 25. g4 {[%emt 0:00:07]} Rxc3 {[%emt 0:00:13]} 26. gxh5 {[%emt 0:00:01]} Rc2 {[%emt 0:00:10]} 27. Nxe7 {[%emt 0:00:07]} Qxe7 {[%emt 0:00:15]} 28. hxg6+ {[%emt 0:00:02]} Kh8 {[%emt 0:00:01]} 29. Qxe7 {[%emt 0:00:02]} Rxe7 {[%emt 0:00:02] Check Result:?ev?} 30. Rf8# {[%emt 0:00:01]} 1-0